[Event "5th EKA IIFL Investment 2019"]
[Site "Mumbai"]
[Date "2020.01.01"]
[Round "3.34"]
[White "Khusenkhojaev, Muhammad"]
[Black "Jubin Jimmy"]
[Result "1/2-1/2"]
[ECO "A05"]
[WhiteElo "2427"]
[BlackElo "2193"]
[Annotator "RC"]
[PlyCount "81"]
[EventDate "2019.12.30"]
[EventType "swiss"]
[EventCountry "IND"]
[SourceTitle "playchess.com"]
[Source "ChessBase"]
[SourceQuality "1"]
[TimeControl "40/5400+30:1800+30"]

1. Nf3 {[%emt 0:03:41]} Nf6 {[%emt 0:00:00]} 2. c4 {[%emt 0:00:05]} e6 {[%emt 0:00:00]} 3. g3 {[%emt 0:00:06]} d5 {[%emt 0:00:00]} 4. d4 {[%emt 0:00:04]} Bb4+ {[%emt 0:00:00]} 5. Bd2 {[%emt 0:00:04]} Be7 {[%emt 0:00:05]} 6. Bg2 {[%emt 0:00:05]} O-O {[%emt 0:00:11]} 7. O-O {[%emt 0:00:08]} Nbd7 {[%emt 0:00:16]} 8. Qc2 {[%emt 0:00:07]} c6 {[%emt 0:00:05]} 9. Rd1 {[%emt 0:00:06]} b6 {[%emt 0:01:16]} 10. b3 {[%emt 0:00:06]} Bb7 {[%emt 0:04:01]} 11. Nc3 {[%emt 0:00:07]} c5 {[%emt 0:02:20]} 12. cxd5 {[%emt 0:00:31]} exd5 {[%emt 0:00:48]} 13. Bf4 {[%emt 0:02:58]} Rc8 {[%emt 0:01:43]} 14. Nb5 {[%emt 0:01:18]} a6 {[%emt 0:05:34]} 15. Nd6 {[%emt 0:00:08]} Bxd6 {[%emt 0:00:07]} 16. Bxd6 {[%emt 0:00:04]} Re8 {[%emt 0:00:32]} 17. dxc5 {[%emt 0:06:18]} bxc5 {[%emt 0:06:28]} 18. Bf4 {[%emt 0:07:27]} Qb6 {[%emt 0:09:32]} 19. Re1 {[%emt 0:17:26]} h6 {[%emt 0:07:03]} 20. Qc1 {[%emt 0:15:32]} d4 {[%emt 0:09:12]} 21. Qa3 {[%emt 0:03:25]} Ne4 {[%emt 0:08:37]} 22. Nd2 {[%emt 0:00:31]} Nxd2 {[%emt 0:01:41]} 23. Bxb7 {[%emt 0:02:08]} Qxb7 {[%emt 0:02:10]} 24. Bxd2 {[%emt 0:00:04]} Re6 {[%emt 0:08:46]} 25. Qa4 {[%emt 0:04:15]} d3 {[%emt 0:06:20]} 26. e4 {[%emt 0:01:14]} Ne5 {[%emt 0:07:55]} 27. Re3 {[%emt 0:00:20]} Rce8 {[%emt 0:01:48]} 28. Bc3 {[%emt 0:01:31]} Ng4 {[%emt 0:02:48]} 29. Rxd3 {[%emt 0:01:27]} Rxe4 {[%emt 0:00:02]} 30. Qd7 {[%emt 0:02:26]} Qxd7 {[%emt 0:01:28]} 31. Rxd7 {[%emt 0:00:05]} Re2 {[%emt 0:00:11]} 32. Rd2 {[%emt 0:01:28]} R2e6 {[%emt 0:00:09]} 33. Rd7 {[%emt 0:00:04]} Re2 {[%emt 0:00:03]} 34. Rd2 {[%emt 0:00:05]} R2e6 {[%emt 0:00:09]} 35. Rd7 {[%emt 0:00:03]} Re2 {[%emt 0:00:07]} 36. Rd2 {[%emt 0:00:04]} R2e6 {[%emt 0:00:02]} 37. Rd7 {[%emt 0:00:09]} Re2 {[%emt 0:00:44]} 38. Rd2 {[%emt 0:00:02]} R2e6 {[%emt 0:00:07]} 39. Rd7 {[%emt 0:00:03]} Re2 {[%emt 0:00:03]} 40. Rd2 {[%emt 0:00:00]} R2e6 {[%emt 0:00:00]} 41. Rd7 {[%emt 0:00:11]} 1/2-1/2

[Event "5th EKA IIFL Investment 2019"]
[Site "Mumbai"]
[Date "2020.01.01"]
[Round "3.35"]
[White "Sundararajan, Kidambi"]
[Black "Patil, Pratik"]
[Result "1/2-1/2"]
[ECO "D02"]
[WhiteElo "2414"]
[BlackElo "2167"]
[Annotator "RC"]
[PlyCount "80"]
[EventDate "2019.12.30"]
[EventType "swiss"]
[EventCountry "IND"]
[SourceTitle "playchess.com"]
[Source "ChessBase"]
[SourceQuality "1"]
[TimeControl "40/5400+30:1800+30"]

1. d4 {[%emt 0:00:00]} d5 {[%emt 0:00:00]} 2. Nf3 {[%emt 0:00:03]} Nf6 {[%emt 0:02:20]} 3. Bf4 {[%emt 0:00:15]} e6 {[%emt 0:03:28]} 4. e3 {[%emt 0:00:13]} Be7 {[%emt 0:00:28]} 5. Bd3 {[%emt 0:00:53]} O-O {[%emt 0:00:25]} 6. Nbd2 {[%emt 0:00:30]} Nbd7 {[%emt 0:02:38]} 7. c3 {[%emt 0:00:44]} c5 {[%emt 0:06:52]} 8. Ne5 {[%emt 0:04:33]} Nxe5 {[%emt 0:17:14]} 9. Bxe5 {[%emt 0:01:05]} Bd7 {[%emt 0:02:02]} 10. O-O {[%emt 0:02:35]} Rc8 {[%emt 0:03:33]} 11. Qf3 {[%emt 0:05:13]} Qb6 {[%emt 0:06:25]} 12. dxc5 {[%emt 0:09:07]} Qxc5 {[%emt 0:02:04]} 13. Qh3 {[%emt 0:06:13]} h6 {[%emt 0:06:20]} 14. Rfd1 {[%emt 0:15:27]} Bb5 {[%emt 0:02:42]} 15. Bd4 {[%emt 0:02:58]} Qc6 {[%emt 0:00:29]} 16. Bc2 {[%emt 0:01:18]} Nd7 {[%emt 0:11:03]} 17. e4 {[%emt 0:03:43]} dxe4 {[%emt 0:08:23]} 18. Nxe4 {[%emt 0:03:40]} f5 {[%emt 0:03:45]} 19. Ng3 {[%emt 0:02:53]} Bc5 {[%emt 0:04:42]} 20. Bb3 {[%emt 0:08:00]} Bxd4 {[%emt 0:05:20]} 21. Rxd4 {[%emt 0:00:31]} Nc5 {[%emt 0:00:34]} 22. Rad1 {[%emt 0:03:23]} Nxb3 {[%emt 0:01:26]} 23. axb3 {[%emt 0:00:06]} Qc7 {[%emt 0:02:13]} 24. Qh4 {[%emt 0:05:16]} Rce8 {[%emt 0:00:29]} 25. c4 {[%emt 0:01:48]} Bc6 {[%emt 0:00:10]} 26. b4 {[%emt 0:04:19]} e5 {[%emt 0:02:19]} 27. R4d2 {[%emt 0:04:15]} a6 {[%emt 0:01:12]} 28. Ne2 {[%emt 0:02:36]} f4 {[%emt 0:01:29]} 29. Nc3 {[%emt 0:00:38]} e4 {[%emt 0:00:19]} 30. Qg4 {[%emt 0:03:42]} e3 {[%emt 0:01:09]} 31. fxe3 {[%emt 0:00:37]} fxe3 {[%emt 0:02:43]} 32. Re2 {[%emt 0:00:34]} Rf4 {[%emt 0:00:37]} 33. Qg3 {[%emt 0:00:24]} Qf7 {[%emt 0:00:39]} 34. b5 {[%emt 0:01:14]} axb5 {[%emt 0:00:49]} 35. cxb5 {[%emt 0:00:06]} Rf8 {[%emt 0:00:19]} 36. h3 {[%emt 0:02:48]} Bxb5 {[%emt 0:00:28]} 37. Rxe3 {[%emt 0:00:48]} Bc6 {[%emt 0:00:04]} 38. Re2 {[%emt 0:00:53]} Rf1+ {[%emt 0:01:00]} 39. Rxf1 {[%emt 0:00:04]} Qxf1+ {[%emt 0:00:02]} 40. Kh2 {[%emt 0:00:00]} Qf4 {[%emt 0:00:00]} 1/2-1/2

[Event "5th EKA IIFL Investment 2019"]
[Site "Mumbai"]
[Date "2020.01.01"]
[Round "3.49"]
[White "Aaryan, Varshney"]
[Black "Kulasekara, D M T Kashyapa"]
[Result "1/2-1/2"]
[ECO "D66"]
[WhiteElo "2269"]
[BlackElo "1904"]
[Annotator "RC"]
[PlyCount "110"]
[EventDate "2019.12.30"]
[EventType "swiss"]
[EventCountry "IND"]
[SourceTitle "playchess.com"]
[Source "ChessBase"]
[SourceQuality "1"]
[TimeControl "40/5400+30:1800+30"]

1. d4 {[%emt 0:07:26]} Nf6 {[%emt 0:00:00]} 2. c4 {[%emt 0:00:14]} e6 {[%emt 0:00:04]} 3. Nf3 {[%emt 0:00:09]} d5 {[%emt 0:00:35]} 4. Nc3 {[%emt 0:00:12]} Be7 {[%emt 0:00:25]} 5. Bg5 {[%emt 0:00:13]} Nbd7 {[%emt 0:02:29]} 6. e3 {[%emt 0:00:13]} O-O {[%emt 0:03:39]} 7. Rc1 {[%emt 0:00:42]} c6 {[%emt 0:17:00]} 8. Bd3 {[%emt 0:04:23]} dxc4 {[%emt 0:03:15]} 9. Bxc4 {[%emt 0:00:19]} b5 {[%emt 0:02:34]} 10. Bd3 {[%emt 0:01:50]} a6 {[%emt 0:02:44]} 11. O-O {[%emt 0:05:53]} c5 {[%emt 0:11:40]} 12. Ne4 {[%emt 0:04:07]} c4 {[%emt 0:07:59]} 13. Bb1 {[%emt 0:04:52]} Bb7 {[%emt 0:03:47]} 14. Nxf6+ {[%emt 0:01:50]} Nxf6 {[%emt 0:02:25]} 15. Re1 {[%emt 0:06:37]} Ne4 {[%emt 0:21:09]} 16. Bxe7 {[%emt 0:08:56]} Qxe7 {[%emt 0:00:07]} 17. Qc2 {[%emt 0:01:53]} g6 {[%emt 0:05:07]} 18. Ne5 {[%emt 0:01:17]} f6 {[%emt 0:05:14]} 19. Nf3 {[%emt 0:01:47]} Qd6 {[%emt 0:01:24]} 20. Nd2 {[%emt 0:01:54]} Nxd2 {[%emt 0:02:17]} 21. Qxd2 {[%emt 0:00:02]} Rad8 {[%emt 0:01:37]} 22. Rcd1 {[%emt 0:00:35]} Rd7 {[%emt 0:01:57]} 23. f4 {[%emt 0:02:39]} Rfd8 {[%emt 0:01:27]} 24. Qf2 {[%emt 0:02:25]} Kg7 {[%emt 0:00:49]} 25. h4 {[%emt 0:00:39]} Qb6 {[%emt 0:01:03]} 26. h5 {[%emt 0:00:51]} gxh5 {[%emt 0:01:04]} 27. Qh4 {[%emt 0:01:29]} Qc6 {[%emt 0:00:38]} 28. Re2 {[%emt 0:01:07]} Qd5 {[%emt 0:00:57]} 29. e4 {[%emt 0:02:58]} Qc6 {[%emt 0:00:30]} 30. Re3 {[%emt 0:00:33]} e5 {[%emt 0:00:30]} 31. Rg3+ {[%emt 0:00:51]} Kh8 {[%emt 0:00:31]} 32. fxe5 {[%emt 0:00:51]} fxe5 {[%emt 0:00:30]} 33. d5 {[%emt 0:01:06]} Qb6+ {[%emt 0:00:30]} 34. Kh2 {[%emt 0:00:18]} Rf8 {[%emt 0:00:25]} 35. Qxh5 {[%emt 0:02:13]} Qd6 {[%emt 0:00:36]} 36. Re1 {[%emt 0:00:47]} Rdf7 {[%emt 0:00:29]} 37. Ree3 {[%emt 0:00:54]} Bc8 {[%emt 0:00:25]} 38. Ref3 {[%emt 0:01:05]} Rxf3 {[%emt 0:00:31]} 39. gxf3 {[%emt 0:00:23]} Bd7 {[%emt 0:00:28]} 40. Bc2 {[%emt 0:00:00]} Qf6 {[%emt 0:00:00]} 41. Kg2 {[%emt 0:02:18]} Rg8 {[%emt 0:06:21]} 42. Qh2 {[%emt 0:09:20]} Rf8 {[%emt 0:07:21]} 43. Qg1 {[%emt 0:07:17]} Qf4 {[%emt 0:07:01]} 44. Qc5 {[%emt 0:05:01]} Rf6 {[%emt 0:02:37]} 45. Qa7 {[%emt 0:02:15]} Qd2+ {[%emt 0:04:30]} 46. Qf2 {[%emt 0:00:44]} Qf4 {[%emt 0:00:02]} 47. Bd1 {[%emt 0:03:53]} Rh6 {[%emt 0:02:00]} 48. Be2 {[%emt 0:01:56]} Qd2 {[%emt 0:03:26]} 49. Kg1 {[%emt 0:03:08]} Qxb2 {[%emt 0:00:36]} 50. Qg2 {[%emt 0:06:22]} Qd4+ {[%emt 0:00:59]} 51. Kf1 {[%emt 0:00:05]} Qa1+ {[%emt 0:00:38]} 52. Kf2 {[%emt 0:00:01]} Qd4+ {[%emt 0:00:36]} 53. Kf1 {[%emt 0:00:32]} Qa1+ {[%emt 0:00:20]} 54. Kf2 Qd4+ {[%emt 0:00:14]} 55. Kf1 {[%emt 0:00:30]} Qa1+ {[%emt 0:00:18]} 1/2-1/2

[Event "5th EKA IIFL Investment 2019"]
[Site "Mumbai"]
[Date "2020.01.01"]
[Round "3.54"]
[White "Parnali, S Dharia"]
[Black "Dixit, Nikhil"]
[Result "1-0"]
[ECO "E81"]
[WhiteElo "2102"]
[BlackElo "2318"]
[Annotator "RC"]
[PlyCount "35"]
[EventDate "2019.12.30"]
[EventType "swiss"]
[EventCountry "IND"]
[SourceTitle "playchess.com"]
[Source "ChessBase"]
[SourceQuality "1"]
[TimeControl "40/5400+30:1800+30"]

1. d4 Nf6 2. c4 g6 3. Nc3 Bg7 4. e4 d6 5. f3 O-O 6. Nge2 c6 7. Be3 e5 8. d5 cxd5 9. cxd5 a6 10. Qd2 b5 11. Nc1 Bd7 12. b4 Nh5 13. Nb3 f5 14. Bd3 Qh4+ 15. Bf2 Qe7 16. O-O-O Nf4 17. Be3 Rc8 18. Kb2 1-0

[Event "5th EKA IIFL Investment 2019"]
[Site "Mumbai"]
[Date "2020.01.01"]
[Round "3.55"]
[White "Aakash Sharadchandra, Dalvi"]
[Black "Shailesh, Dravid"]
[Result "0-1"]
[ECO "A56"]
[WhiteElo "2107"]
[BlackElo "2311"]
[Annotator "RC"]
[PlyCount "59"]
[EventDate "2019.12.30"]
[EventType "swiss"]
[EventCountry "IND"]
[SourceTitle "playchess.com"]
[Source "ChessBase"]
[SourceQuality "1"]
[TimeControl "40/5400+30:1800+30"]

1. d4 Nf6 2. c4 c5 3. d5 g6 4. Nc3 Bg7 5. e4 O-O 6. Bd3 e6 7. Nf3 exd5 8. cxd5 d6 9. h3 a6 10. a4 Nbd7 11. Bf4 Re8 12. O-O Qc7 13. Re1 Rb8 14. Bh2 Nh5 15. Nd2 Bh6 16. Nc4 Bf4 17. a5 b5 18. axb6 Nxb6 19. Qf3 Bxh2+ 20. Kxh2 Nxc4 21. Bxc4 Rxb2 22. Bxa6 Qe7 23. Bxc8 Qe5+ 24. g3 Rxc8 25. Ra7 f5 26. Nd1 Rb4 27. exf5 Qxe1 28. fxg6 Qe8 29. Qxh5 Qxg6 30. Qe2 0-1

[Event "5th EKA IIFL Investment 2019"]
[Site "Mumbai"]
[Date "2020.01.01"]
[Round "3.57"]
[White "Ram Prakash, R."]
[Black "Saravana, Krishnan P."]
[Result "0-1"]
[ECO "A20"]
[WhiteElo "2191"]
[BlackElo "2304"]
[Annotator "RC"]
[PlyCount "96"]
[EventDate "2019.12.30"]
[EventType "swiss"]
[EventCountry "IND"]
[SourceTitle "playchess.com"]
[Source "ChessBase"]
[SourceQuality "1"]
[TimeControl "40/5400+30:1800+30"]

1. c4 {[%emt 0:00:00]} e5 {[%emt 0:00:00]} 2. g3 {[%emt 0:00:00]} Nf6 {[%emt 0:00:05]} 3. Bg2 {[%emt 0:00:01]} Bc5 {[%emt 0:00:57]} 4. Nc3 {[%emt 0:00:14]} O-O {[%emt 0:01:01]} 5. e3 {[%emt 0:00:10]} Re8 {[%emt 0:02:24]} 6. Nge2 {[%emt 0:01:26]} d6 {[%emt 0:03:29]} 7. O-O {[%emt 0:03:10]} c6 {[%emt 0:02:39]} 8. d4 {[%emt 0:00:26]} Bb6 {[%emt 0:00:37]} 9. b4 {[%emt 0:12:35]} e4 {[%emt 0:04:32]} 10. h3 {[%emt 0:08:39]} d5 {[%emt 0:02:14]} 11. cxd5 {[%emt 0:02:55]} cxd5 12. Bb2 {[%emt 0:01:17]} Nc6 {[%emt 0:01:59]} 13. a3 Bc7 {[%emt 0:01:47]} 14. Rc1 {[%emt 0:00:34]} Bb6 {[%emt 0:00:00]} 15. Ra1 {[%emt 0:00:30]} Bc7 {[%emt 0:01:00]} 16. Rc1 {[%emt 0:00:00]} Bb6 {[%emt 0:00:00]} 17. Ra1 {[%emt 0:01:00]} Bc7 {[%emt 0:01:00]} 18. Rc1 {[%emt 0:00:00]} Bb6 {[%emt 0:00:00]} 19. Ra1 {[%emt 0:01:00]} Bc7 {[%emt 0:01:00]} 20. Rc1 Bd7 {[%emt 0:08:05]} 21. Qb3 {[%emt 0:01:31]} Ne7 {[%emt 0:08:24]} 22. a4 {[%emt 0:00:55]} Rc8 {[%emt 0:01:59]} 23. Ba3 {[%emt 0:04:34]} Be6 {[%emt 0:02:07]} 24. Rc2 {[%emt 0:04:38]} Qd7 {[%emt 0:01:30]} 25. Kh2 {[%emt 0:00:26]} Nf5 {[%emt 0:00:00]} 26. Kg1 {[%emt 0:00:34]} Ne7 {[%emt 0:01:00]} 27. Kh2 {[%emt 0:00:26]} Nf5 {[%emt 0:06:15]} 28. Kg1 {[%emt 0:09:58]} Bb8 {[%emt 0:04:30]} 29. Rfc1 {[%emt 0:02:35]} Bc7 {[%emt 0:00:00]} 30. Rf1 {[%emt 0:00:00]} Bb8 {[%emt 0:01:00]} 31. Rfc1 {[%emt 0:01:00]} Ne7 {[%emt 0:02:11]} 32. Kh2 {[%emt 0:02:23]} h5 {[%emt 0:01:40]} 33. a5 {[%emt 0:02:49]} h4 {[%emt 0:08:20]} 34. Na4 {[%emt 0:00:35]} hxg3+ {[%emt 0:02:09]} 35. fxg3 {[%emt 0:00:06]} Nh5 {[%emt 0:00:42]} 36. Rxc8 {[%emt 0:12:58]} Rxc8 {[%emt 0:00:48]} 37. Rxc8+ {[%emt 0:01:25]} Qxc8 {[%emt 0:00:18]} 38. Nf4 {[%emt 0:06:24]} Nxg3 {[%emt 0:01:00]} 39. Kxg3 {[%emt 0:00:10]} g5 {[%emt 0:00:04]} 40. Qd1 {[%emt 0:05:00]} gxf4+ {[%emt 0:02:17]} 41. exf4 {[%emt 0:30:05]} Bxf4+ {[%emt 0:30:37]} 42. Kxf4 {[%emt 0:01:37]} Qc7+ {[%emt 0:00:34]} 43. Kg5 {[%emt 0:01:03]} Qg3+ {[%emt 0:01:58]} 44. Kf6 {[%emt 0:00:26]} Qh4+ {[%emt 0:00:24]} 45. Ke5 {[%emt 0:00:29]} Ng6+ {[%emt 0:00:23]} 46. Kd6 {[%emt 0:00:18]} Qd8+ {[%emt 0:00:18]} 47. Kc5 {[%emt 0:00:13]} Qc7+ {[%emt 0:00:05]} 48. Kb5 {[%emt 0:00:13]} a6# {[%emt 0:00:05]} 0-1

[Event "5th EKA IIFL Investment 2019"]
[Site "Mumbai"]
[Date "2020.01.02"]
[Round "4.2"]
[White "Deepan Chakkravarthy J."]
[Black "Das, Sayantan"]
[Result "1/2-1/2"]
[ECO "A13"]
[WhiteElo "2535"]
[BlackElo "2440"]
[Annotator "RC"]
[PlyCount "94"]
[EventDate "2019.12.30"]
[EventType "swiss"]
[EventCountry "IND"]
[SourceTitle "playchess.com"]
[Source "ChessBase"]
[SourceQuality "1"]
[TimeControl "40/5400+30:1800+30"]

1. c4 {[%emt 0:00:00]} e6 {[%emt 0:00:00]} 2. e3 {[%emt 0:01:34]} d5 {[%emt 0:00:45]} 3. Nf3 {[%emt 0:00:07]} Nf6 {[%emt 0:00:53]} 4. b3 {[%emt 0:00:46]} b6 {[%emt 0:02:39]} 5. Bb2 {[%emt 0:00:09]} Bb7 {[%emt 0:00:08]} 6. Be2 {[%emt 0:00:05]} Nbd7 {[%emt 0:00:36]} 7. O-O {[%emt 0:00:09]} Bd6 {[%emt 0:00:45]} 8. cxd5 {[%emt 0:00:08]} exd5 {[%emt 0:00:12]} 9. Nd4 {[%emt 0:01:24]} Be5 {[%emt 0:05:08]} 10. f4 {[%emt 0:02:21]} Bxd4 {[%emt 0:00:07]} 11. Bxd4 {[%emt 0:00:04]} c5 {[%emt 0:01:30]} 12. Bb2 {[%emt 0:00:34]} O-O {[%emt 0:00:11]} 13. Bf3 {[%emt 0:02:07]} Qe7 {[%emt 0:08:53]} 14. Nc3 {[%emt 0:01:29]} Rac8 {[%emt 0:02:55]} 15. Ne2 {[%emt 0:04:21]} Ba6 {[%emt 0:02:32]} 16. g4 {[%emt 0:02:04]} Rfe8 {[%emt 0:12:28]} 17. Rf2 {[%emt 0:02:20]} Ne4 {[%emt 0:05:26]} 18. Bxe4 {[%emt 0:01:33]} Qxe4 {[%emt 0:06:58]} 19. Ng3 {[%emt 0:00:06]} Qe6 {[%emt 0:00:54]} 20. g5 {[%emt 0:07:37]} Bd3 {[%emt 0:07:18]} 21. f5 {[%emt 0:16:36]} Qd6 {[%emt 0:02:00]} 22. Qh5 {[%emt 0:01:42]} d4 {[%emt 0:08:24]} 23. exd4 {[%emt 0:00:40]} c4 {[%emt 0:03:10]} 24. Qf3 {[%emt 0:16:35]} b5 {[%emt 0:02:22]} 25. bxc4 {[%emt 0:11:40]} Bxc4 {[%emt 0:04:09]} 26. d3 {[%emt 0:00:17]} Bd5 {[%emt 0:01:28]} 27. Ne4 {[%emt 0:00:07]} Qe7 {[%emt 0:09:52]} 28. Re2 {[%emt 0:00:41]} Bxe4 {[%emt 0:07:56]} 29. dxe4 {[%emt 0:00:02]} Qxg5+ {[%emt 0:00:05]} 30. Kh1 {[%emt 0:00:48]} Qe7 {[%emt 0:01:33]} 31. Rg1 {[%emt 0:00:30]} g6 {[%emt 0:01:44]} 32. e5 {[%emt 0:11:59]} Nf8 {[%emt 0:00:46]} 33. d5 {[%emt 0:05:43]} Qb7 {[%emt 0:00:33]} 34. Rd2 {[%emt 0:00:14]} Rcd8 {[%emt 0:00:37]} 35. Qe4 {[%emt 0:01:27]} Qc7 {[%emt 0:01:53]} 36. e6 {[%emt 0:03:40]} fxe6 {[%emt 0:00:08]} 37. fxg6 {[%emt 0:00:12]} h6 {[%emt 0:00:07]} 38. d6 {[%emt 0:01:39]} Qc5 {[%emt 0:00:31]} 39. Qf4 {[%emt 0:02:36]} Qf5 {[%emt 0:00:54]} 40. Qxh6 {[%emt 0:00:00]} e5 {[%emt 0:00:00]} 41. Qe3 {[%emt 0:02:38]} Rd7 {[%emt 0:06:46]} 42. Rf2 {[%emt 0:07:29]} Qe6 {[%emt 0:00:39]} 43. Qf3 {[%emt 0:00:15]} Rg7 {[%emt 0:06:12]} 44. Qf7+ {[%emt 0:04:45]} Rxf7 {[%emt 0:00:15]} 45. gxf7+ {[%emt 0:00:02]} Kh7 {[%emt 0:00:13]} 46. fxe8=Q {[%emt 0:00:21]} Qxe8 {[%emt 0:00:05]} 47. Rf5 {[%emt 0:02:00]} Ne6 {[%emt 0:07:30]} 1/2-1/2

[Event "5th EKA IIFL Investment 2019"]
[Site "Mumbai"]
[Date "2020.01.02"]
[Round "4.7"]
[White "Sammed Jaykumar, Shete"]
[Black "Stupak, Kirill"]
[Result "1/2-1/2"]
[ECO "C02"]
[WhiteElo "2381"]
[BlackElo "2529"]
[Annotator "RC"]
[PlyCount "107"]
[EventDate "2019.12.30"]
[EventType "swiss"]
[EventCountry "IND"]
[SourceTitle "playchess.com"]
[Source "ChessBase"]
[SourceQuality "1"]
[TimeControl "40/5400+30:1800+30"]

1. e4 {[%emt 0:00:00]} e6 {[%emt 0:00:10]} 2. d4 {[%emt 0:00:00]} d5 {[%emt 0:00:03]} 3. e5 {[%emt 0:00:00]} c5 {[%emt 0:00:41]} 4. c3 {[%emt 0:00:02]} Qb6 {[%emt 0:00:04]} 5. Nf3 {[%emt 0:00:18]} Bd7 {[%emt 0:01:42]} 6. Be2 {[%emt 0:00:44]} cxd4 {[%emt 0:01:41]} 7. Nxd4 {[%emt 0:12:24]} Ne7 {[%emt 0:06:48]} 8. Nd2 {[%emt 0:07:29]} Nbc6 {[%emt 0:07:28]} 9. N2f3 {[%emt 0:00:38]} Nxd4 {[%emt 0:06:10]} 10. Nxd4 {[%emt 0:00:52]} Nc6 {[%emt 0:02:05]} 11. Nxc6 {[%emt 0:02:03]} Bxc6 {[%emt 0:02:38]} 12. O-O {[%emt 0:02:53]} Be7 {[%emt 0:08:17]} 13. a4 {[%emt 0:06:52]} a5 {[%emt 0:06:37]} 14. Bd3 {[%emt 0:00:47]} d4 {[%emt 0:01:57]} 15. c4 {[%emt 0:08:54]} h5 {[%emt 0:04:01]} 16. b3 {[%emt 0:09:06]} O-O-O {[%emt 0:04:45]} 17. Bd2 {[%emt 0:03:08]} Bb4 {[%emt 0:03:17]} 18. Rb1 {[%emt 0:03:03]} f5 {[%emt 0:09:10]} 19. Bxb4 {[%emt 0:14:32]} Qxb4 {[%emt 0:00:48]} 20. Qe1 {[%emt 0:00:10]} Qxe1 {[%emt 0:07:56]} 21. Rbxe1 {[%emt 0:02:00]} g5 {[%emt 0:02:38]} 22. f3 {[%emt 0:04:19]} Kc7 {[%emt 0:03:00]} 23. Rc1 {[%emt 0:00:59]} g4 {[%emt 0:00:52]} 24. f4 {[%emt 0:03:05]} h4 {[%emt 0:06:40]} 25. Rfd1 {[%emt 0:00:33]} Rh7 {[%emt 0:02:12]} 26. Rd2 {[%emt 0:02:37]} Rhd7 {[%emt 0:07:34]} 27. Kf1 {[%emt 0:00:09]} g3 {[%emt 0:00:44]} 28. h3 {[%emt 0:00:30]} Be4 {[%emt 0:02:43]} 29. Ke1 {[%emt 0:01:09]} Kc6 {[%emt 0:00:27]} 30. Kd1 {[%emt 0:00:13]} Kc5 {[%emt 0:00:08]} 31. Kc2 {[%emt 0:00:28]} Kb4 {[%emt 0:01:37]} 32. Kb2 {[%emt 0:00:59]} Rc7 {[%emt 0:00:03]} 33. Ra1 {[%emt 0:02:01]} Bc6 {[%emt 0:00:38]} 34. Rc1 {[%emt 0:02:18]} Kc5 {[%emt 0:00:03]} 35. Re1 {[%emt 0:00:54]} Rcc8 {[%emt 0:00:03]} 36. Rc1 {[%emt 0:02:07]} Ra8 {[%emt 0:00:01]} 37. Ka3 {[%emt 0:03:03]} Ra6 {[%emt 0:00:05]} 38. Rb1 {[%emt 0:00:35]} Rb6 {[%emt 0:00:08]} 39. Rbb2 {[%emt 0:00:23]} Rb4 {[%emt 0:01:22]} 40. Re2 {[%emt 0:00:00]} Ra8 {[%emt 0:00:00]} 41. Red2 {[%emt 0:03:15]} Be4 {[%emt 0:03:23]} 42. Rbc2 {[%emt 0:01:33]} Rd8 {[%emt 0:03:18]} 43. Ka2 {[%emt 0:01:42]} Rc8 {[%emt 0:00:31]} 44. Ka3 {[%emt 0:00:37]} Rc6 {[%emt 0:00:55]} 45. Rb2 {[%emt 0:00:19]} Rc8 {[%emt 0:01:23]} 46. Rbc2 {[%emt 0:00:17]} Rc7 {[%emt 0:00:01]} 47. Ka2 {[%emt 0:01:27]} Rc6 {[%emt 0:09:07]} 48. Ka3 {[%emt 0:00:45]} Rcb6 {[%emt 0:00:10]} 49. Rb2 {[%emt 0:00:04]} Bc6 {[%emt 0:00:14]} 50. Re2 {[%emt 0:00:25]} Be8 {[%emt 0:01:24]} 51. Red2 {[%emt 0:00:42]} Bc6 {[%emt 0:00:11]} 52. Re2 {[%emt 0:00:07]} Be8 {[%emt 0:00:04]} 53. Red2 {[%emt 0:00:04]} Bc6 {[%emt 0:00:05]} 54. Re2 {[%emt 0:00:04]} 1/2-1/2